Cogmind - Beta 16 @@@ ROGUE MODE // 2026.02.03 @ 16:34:45 Player: FailPail Result: Destroyed by D-53 Grenadier with Mini Grenade Launcher Performance ------------- Evolutions (0) 0 Regions Visited (2) 400 Robots Destroyed (10) 50 Value Destroyed (161) 161 Prototype IDs (0) 0 Alien Tech Used (0) 0 Bonus (49) 49 TOTAL SCORE: 660 Bonus ------- Follower Combat Kills 67 Friendly Fire -18 Cogmind --------- Core Integrity 0/250 Matter 281/300 Energy 100/100 System Corruption 0% Temperature Cool (0) Movement Core (400) Ox7 Location -10/Mines Parts ------- > --- POWER (1) -------- (None) > --- PROPULSION (2) --- (None) > --- UTILITY (2) ------ Large Storage Unit > --- WEAPON (2) ------- Rocket Launcher > --- INVENTORY (15) --- Ion Engine Ion Engine Ion Engine Light Ion Engine Light Ion Engine Light Ion Engine Light Nuclear Core Large Storage Unit Particle Gun Particle Gun Assault Rifle Assault Rifle Light Assault Rifle Light Assault Rifle Peak State ------------ > --- POWER ------------ Light Ion Engine > --- PROPULSION ------- Light Treads Light Treads > --- UTILITY ---------- Heat Sink Large Storage Unit > --- WEAPON ----------- Light Assault Rifle Rocket Launcher > --- INVENTORY -------- Ion Engine Ion Engine Ion Engine Light Ion Engine Light Ion Engine Light Ion Engine Light Nuclear Core Large Storage Unit Particle Gun Particle Gun Assault Rifle Assault Rifle Light Assault Rifle Light Assault Rifle [Rating: 9] Favorites ----------- Power Light Ion Engine Engine Light Ion Engine Propulsion Light Treads Treads Light Treads Utility Large Storage Unit Device Heat Sink Storage Large Storage Unit Weapon Assault Rifle Ballistic Gun Assault Rifle Launcher Rocket Launcher Build | -11 -10 -10 ------- Run | Yrd Mat Min Slots Evolved . | . . . Power . | . . . Propulsion . | . . . Utility . | . . . Weapon . | . . . Parts Attached 11 | 5 4 2 Power 2 | 1 1 . Engine 2 | 1 1 . Core . | . . . Reactor . | . . . Propulsion 2 | 2 . . Treads 2 | 2 . . Leg . | . . . Wheel . | . . . Hover . | . . . Flight . | . . . Utility 4 | 1 2 1 Device 1 | . . 1 Storage 3 | 1 2 . Processor . | . . . Hackware . | . . . Protection . | . . . Artifact . | . . . Weapon 3 | 1 1 1 Energy Gun . | . . . Energy Cannon . | . . . Ballistic Gun 2 | 1 1 . Ballistic Cannon . | . . . Launcher 1 | . . 1 Special Weapon . | . . . Impact Weapon . | . . . Slashing Weapon . | . . . Piercing Weapon . | . . . Special Melee Weapon . | . . . Unidentified Prototypes . | . . . Parts Lost 5 | . . 5 Power 1 | . . 1 Propulsion 2 | . . 2 Utility 1 | . . 1 Weapon 1 | . . 1 Highest Loss Streak 5 | . . 5 To Critical Strikes . | . . . Average Backups 6 | . 2 8 Power 3 | . 1 4 Propulsion . | . . . Utility . | . . 1 Weapon 2 | . . 3 Tool/Special . | . . . Unused Backups 10 | . . 10 Power 5 | . . 5 Propulsion . | . . . Utility . | . . . Weapon 5 | . . 5 Tool/Special . | . . . Average Slot Usage (%) 86 | . 72 91 Engine 13 | . 12 14 Treads 27 | . 26 28 Device 4 | . . 6 Storage 14 | . 14 14 Ballistic Gun 25 | . 18 27 Peak Build Rating 9 | 5 6 9 Average Rating 6 | 3 5 6 On Entrance 3 | . 5 6 Avg Prop Armor Cover (%) . | . . . Naked Turns . | . . . Heaviest Build 28 | 10 26 28 Greatest Support 40 | 40 40 40 Greatest Overweight (x) 1 | 1 1 1 Average Overweight (x) . | . . . Largest Inventory Capacity 15 | 8 15 15 Average Capacity 14 | 7 14 15 Most Carried 14 | 2 5 14 Average Carried 6 | . 2 8 Final Capacity 15 | 8 15 15 Final Carried 14 | 1 3 14 Class Distribution -------------------- 100% | Mutant Dominant Class ---------------- Mutant | -10/Materials Mutant | -10/Mines Resources | -11 -10 -10 ----------- Run | Yrd Mat Min Matter Collected 476 | 205 33 238 Remotely . | . . . Salvage Created 226 | . 47 179 Parts 16 | . 7 9 Haulers Intercepted . | . . . Recyclers Shooed . | . . . Parts Field Recycled . | . . . Retrieved Matter . | . . . Parts Self-Destructed . | . . . Prevented . | . . . Parts Restored . | . . . Kills | -11 -10 -10 ------- Run | Yrd Mat Min Combat Hostiles Destroyed 11 | . 3 8 Guns 9 | . 3 6 AOE 2 | . . 2 Classes Destroyed 3 | . 1 2 Swarmer 8 | . 3 5 Grunt 2 | . . 2 Assembled 1 | . . 1 Best Kill Streak 3 | . 3 3 Combat Bots Only 3 | . 3 3 Max Kills in Single Turn 2 | . 1 2 Gunslinging . | . . . Exploded 2 | . . 2 Melee . | . . . Uniques/NPCs Destroyed . | . . . Combat | -11 -10 -10 -------- Run | Yrd Mat Min Hostile Shots Fired 61 | . 23 38 Missed 16 | . 8 8 Hits 45 | . 15 30 Melee 3 | . . 3 Projectile 42 | . 15 27 AOE 11 | . . 11 Critical Strikes 1 | . . 1 Damage Taken 800 | . 114 686 Core 259 | . 21 238 Absorbed by Shields . | . . . Core Remaining (%) 100 | 100 . . Volleys Fired 34 | . 9 25 Largest 2 | . 2 2 Hottest 53 | . 40 53 Shots Fired 60 | . 12 48 Gun 56 | . 12 44 Cannon . | . . . Launcher 4 | . . 4 Special . | . . . Kinetic 56 | . 12 44 Thermal . | . . . Explosive 4 | . . 4 Electromagnetic . | . . . Robot Hit Streak 6 | . 3 6 Robot Miss Streak 5 | . 5 2 Penetration Max . | . . . Secondary Targets 2 | . . 2 Max Gunslinging Chain 1 | . . 1 Shots Hit Robots 33 | . 5 28 Core Hits 24 | . 4 20 Critical Kills . | . . . Critical Parts Destroyed . | . . . Critical Strikes . | . . . Melee Attacks . | . . . Impact . | . . . Slashing . | . . . Piercing . | . . . Sneak Attacks . | . . . Combat Hostiles . | . . . Follow-up Attacks . | . . . Damage Inflicted 520 | . 70 450 Guns 337 | . 70 267 Cannons . | . . . Explosions 183 | . . 183 Melee . | . . . Ramming . | . . . Kinetic 337 | . 70 267 Thermal . | . . . Explosive 183 | . . 183 Electromagnetic . | . . . Impact . | . . . Slashing . | . . . Piercing . | . . . Highest Corruption . | . . . Average Corruption . | . . . Corruption Purged . | . . . Corruption Blocked . | . . . Overload Shots . | . . . Overflow Damage . | . . . Projectiles . | . . . Explosions . | . . . Melee . | . . . Knockbacks . | . . . Impact . | . . . Kinetic . | . . . Secondary . | . . . Self-Inflicted Damage . | . . . Shots . | . . . Rammed . | . . . Targets Rammed . | . . . Kicked . | . . . Crushed . | . . . Highest Temperature 12 | . . 12 Average Temperature 7 | . . 7 Received Heat Transfer 30 | . . 30 Siege Activations . | . . . Martial Activations . | . . . Shielding Activations . | . . . Robots Disrupted . | . . . Combat Hostiles . | . . . Robots Corrupted . | . . . Combat Hostiles . | . . . Parts Fried . | . . . Impact Corruptions . | . . . Robots Melted . | . . . Combat Hostiles . | . . . Parts Melted . | . . . Heat Transferred . | . . . Parts Sabotaged . | . . . Parts Stolen . | . . . Parts Stripped . | . . . Power Chain Reactions . | . . . Alert | -11 -10 -10 ------- Run | Yrd Mat Min Maximum Alert Level . | . . . Low Security (%) 100 | 100 100 100 Level 1 . | . . . Level 2 . | . . . Level 3 . | . . . Level 4 . | . . . Level 5 . | . . . High Security . | . . . Max Security . | . . . Peak Influence 131 | . 60 131 Initial 7 | . . 7 Average 35 | . 18 46 Influence Increases 337 | . 70 267 Destroy 0b10 Robot/C 260 | . 60 200 Destroy Leader 50 | . 10 40 Allied During Kill 10 | . . 10 Destroy Structure 17 | . . 17 Influence Decreases 337 | . 50 287 Entered New Map 13 | . . 13 Time Decay 288 | . 50 238 Lost Part 6 | . . 6 Lost Ally 30 | . . 30 Squads Dispatched . | . . . Investigation . | . . . Extermination . | . . . Reinforcement . | . . . Assault . | . . . Garrison . | . . . Intercept . | . . . Searches Triggered . | . . . Construction Impeded . | . . . Haulers Reinforced . | . . . Active Scanning Responses . | . . . Cargo Convoy Interrupts . | . . . Stealth | -11 -10 -10 --------- Run | Yrd Mat Min Distress Signals 1 | . . 1 Communications Jammed . | . . . Distress Signals . | . . . Times Spotted 25 | . 3 22 Peak Tracking Total 12 | . 3 12 Tactical Retreats 1 | . . 1 Traps | -11 -10 -10 ------- Run | Yrd Mat Min Traps Triggered 2 | . 2 . Indirectly . | . . . Trap Hack Attempts . | . . . Triggered . | . . . Disarmed . | . . . Reprogrammed . | . . . Reused . | . . . Traps Extracted . | . . . Installed . | . . . Triggered . | . . . Machines | -11 -10 -10 ---------- Run | Yrd Mat Min Machines Disabled . | . . . Max in Single Turn . | . . . Machines Repaired . | . . . Machines Dismantled . | . . . Machines Sabotaged . | . . . Overloaded Fab Kills . | . . . Hacking | -11 -10 -10 --------- Run | Yrd Mat Min Machines Accessed . | . . . Terminals . | . . . Fabricators . | . . . Repair Stations . | . . . Recycling Units . | . . . Scanalyzers . | . . . Garrison Access . | . . . Total Hacks . | . . . Successful . | . . . Failed . | . . . Catastrophic . | . . . Database Lockouts . | . . . Manual . | . . . Terminals . | . . . Fabricators . | . . . Repair Stations . | . . . Recycling Units . | . . . Scanalyzers . | . . . Garrison Access . | . . . Terminal Hacks . | . . . Fabricator Hacks . | . . . Repair Station Hacks . | . . . Recycling Unit Hacks . | . . . Scanalyzer . | . . . Garrison Access Hacks . | . . . Unauthorized Hacks . | . . . Terminals . | . . . Fabricators . | . . . Repair Stations . | . . . Recycling Units . | . . . Scanalyzers . | . . . Garrison Access . | . . . Data Cores Recovered . | . . . Used . | . . . Hacking Detections . | . . . Full Trace Events . | . . . Feedback Events . | . . . Feedback Blocked . | . . . Robot Schematics Acquired . | . . . Robots Built . | . . . Authchips . | . . . Time . | . . . Total Robot Build Rating . | . . . Part Schematics Acquired . | . . . Parts Built . | . . . Authchips . | . . . Time . | . . . Total Part Build Rating . | . . . Part Studies Acquired . | . . . Parts Repaired . | . . . Time . | . . . Parts Recycled . | . . . Recycled Matter . | . . . Retrieved Matter . | . . . Retrieved Components . | . . . Parts Scanalyzed . | . . . Part Schematics Acquired . | . . . Parts Damaged . | . . . Bothacking | -11 -10 -10 ------------ Run | Yrd Mat Min Used RIF Installer . | . . . Robots Hacked . | . . . Non-combat . | . . . Combat . | . . . Robot Hacks Applied . | . . . Relay Couplers Released . | . . . Fabnet Peak Effective % . | . . . Robots Rewired . | . . . Allies Hacked . | . . . Hacks Repelled . | . . . Allies | -11 -10 -10 -------- Run | Yrd Mat Min Total Allies 5 | . . 5 Largest Group 4 | . . 4 Highest-Rated Group 71 | . . 71 Highest-Rated Ally 31 | . . 31 Total Orders . | . . . Ally Attacks 45 | . . 45 Total Damage 439 | . . 439 Kills 8 | . . 8 Allies Corrupted . | . . . Allies Melted . | . . . Intel | -11 -10 -10 ------- Run | Yrd Mat Min Active Infowar (turns) . | . . . Robot Analysis Total . | . . . Derelict Logs Recovered 2 | . . 2 Drone Launches . | . . . Drone Recoveries . | . . . Exploration | -11 -10 -10 ------------- Run | Yrd Mat Min Turns Passed 917 | 76 229 612 Spaces Moved 490 | 45 117 328 Core 7 | 7 . . Treads 483 | 38 117 328 Legs . | . . . Wheels . | . . . Hover . | . . . Flight . | . . . Fastest Speed 50 | 50 160 160 Average Speed 159 | 147 164 160 Slowest Speed 240 | 160 240 240 Overloaded Moves . | . . . Propulsion Burnouts . | . . . Robots Hopped . | . . . Potential Cave-ins . | . . . Cave-ins Triggered . | . . . Exploration Rate (%) 31 | 4 29 62 Regions Visited 2 Branch Regions 1 Pre-discovered Areas 1 | . . 1 Known Exits Taken . | . . . Unknown Exits Taken 2 | 1 1 . Scrap Searched 1 | . . 1 Spaces Dug . | . . . Terrain Destroyed 37 | . . 37 Melee . | . . . Projectile . | . . . AOE 37 | . . 37 Terrain Rammed . | . . . Walls Destroyed . | . . . Machines Disabled . | . . . Actions | -11 -10 -10 --------- Run | Yrd Mat Min Total 567 | 55 143 369 Wait 1 | . 1 . Move 488 | 44 116 328 Hop . | . . . Pick Up 26 | 6 8 12 Fast Attach . | . . . Attach 12 | 5 6 1 Detach 1 | . 1 . Swap 4 | . 1 3 Drop 1 | . 1 . Fire 34 | . 9 25 Melee . | . . . Ram . | . . . Kick . | . . . Crush . | . . . Escape Stasis . | . . . Rewire . | . . . Trap . | . . . Miscellaneous . | . . . Route ------- -11/Scrapyard -10/Materials -10/Mines History --------- Turn | Location | Event 7 | -11/Scrapyard | Discovered new exit (range 15) 77 | -11/Scrapyard | Entered Materials 267 | -10/Materials | Discovered new exit (range 11) 306 | -10/Materials | Entered Mines 315 | -10/Mines | Build established: Mutant 329 | -10/Mines | Received a Rocket Launcher from a helpful Derelict 425 | -10/Mines | Learned location of 1 exit from Materials 431 | -10/Mines | Learned location of Storage (-8) 566 | -10/Mines | Found a hidden stash of uninstalled traps 694 | -10/Mines | Learned Materials terminal intel 763 | -10/Mines | Assisted by bots powering up and referring to "LRC-V3" 846 | -10/Mines | Assembled infested the area 912 | -10/Mines | Core integrity fell below 50% 914 | -10/Mines | Core integrity fell below 20% 918 | -10/Mines | Destroyed by D-53 Grenadier with Mini Grenade Launcher Last Messages --------------- The unstable cave ceiling collapses. as-82287 destroyed. Trooper 1a knocked back. as-37712 destroyed. [Achievement: Slippery One] Acquired Ion Engine. Acquired 16 matter. Lgt. Assault Rifle destroyed. Z6-BQU(g) destroyed. Lgt. Treads destroyed. Mercenary 1a destroyed. Trooper 1a destroyed. The unstable cave ceiling collapses. R-06 Scavenger collects Lgt. Ion Engine. Lgt. Treads destroyed. The unstable cave ceiling collapses. Lgt. Ion Engine destroyed. The unstable cave ceiling collapses. Heat Sink destroyed. R-06 Scavenger collects Aluminum Leg. Map ----- +----------------------------------------------------+ | ??????????????????????????????????????????? | | ??????????????????????????????????????????? | | ??????????????????????????????????????????? | | ??????????????????????????????????????????? | | ??????????????????????????????????????????? | | ??????????????????????????????????????????? | | ??????????????????????????????????????????? | | ??????????????????????????????????????????? | | ??????????????????????????????????????????? | | ??????????????????????????????????????????? | | ???????????????????????????? #????????????? | | ?????????????????????????### #????????????? | | ????????????????????????? %# ##?????????? | | ???????????????????????## ##????????? | | ???????????????????????# #????????? | | ?????????????????????### #????????? | | ?????????????????????? d ?????????? | | ?????????????????????? d ##????????? | | ????????????????????### < #????????? | | ????????????????????? ###???????? | | ?????????????????????# ????????? | | ????????????????????## ??????????? | | ????????????????????# #???????????? | | ????????????????????# #???????????? | | ???????#####????????# #???????????? | | ???????? #????????# @ #???????????? | | ???????? #????????# #???????????? | | ????????# #????????# #???????????? | | ????????# #??######## ##### #??????? | | ######### #??# = *% % #??????? | | ## #### %|=! r ##### #??????? | | # #### ## | ####!% #????????????? | | # #??# ## #??# ##????????????? | | # #??# ## ######??## ##?????????????? | | # #?## # ##????????# ##??????????????? | | # ### ##?????????## ##???????????????? | | # ##???????????# #????????????????? | | #### ##???????###### #????????????????? | | ???## #????????# #????????????????? | | ????## #????????# #????????????????? | | ?????# #????????# ######????????????????? | | ????## #????????# #?????????????????????? | | ????# ##???????# ##????????????????????? | | ????# ###???### ##????????????????????? | | ????# ##??# ##????????????????????? | | ????# #??# #????????????????????? | | ????## #### #????????????????????? | | ?????## #????????????????????? | | ??????## # ##????????????????????? | | ???????####### #????????????????????? | +----------------------------------------------------+ Best States ------------- Heat Dissipation 35 Energy Generation 10 Energy Capacity 125 Matter Stores 300 Matter Capacity 300 Sight Range 16 Terrain Scan Density 10 Evasion (%) 40 Recoil Reduction 2 Item Schematics ----------------- None Robot Schematics ------------------ None Fabricated ------------ Nothing Repaired ---------- Nothing Studied --------- None Alien Tech Used ----------------- None Achievements -------------- Slippery One Challenges ------------ None Game ------ Seed PersonalDeepDeck Manual? 0 Play Time 00:09:24 Cumulative 3.1 hours Start 2026.02.03 @ 16:27:13 End 2026.02.03 @ 16:34:45 Sessions 1 Manual Loads 0 Difficulty Rogue Special Mode None Game No. 6 Rogue 6 Adventurer 0 Explorer 0 Win Type - Total 0 Types 0/0/0/0/0/0/0/0/0/0 Lore% 0 Gallery% 8 Achievement% 7 Wizard Run 0 Options --------- Layout 1 ASCII 0 Keyboard 0 Movement Mouse Keybinds 0 Fullscreen 1 Font 24/Smallcaps Map View 50x35 Zoom Use 0% Tactical HUD 0 Map Filters NONE Filters NONE Steam 1 RUN: a79fbfe6-af7c-46e8-8282-c07279d5c802